[Event "RUS-ch Men Rapid 2019"]
[Site "Sochi"]
[Date "2019.10.16"]
[Round "8.13"]
[White "Glek, Igor"]
[Black "Savchenko, Boris"]
[Result "1-0"]
[ECO "B40"]
[WhiteElo "2467"]
[BlackElo "2581"]
[Annotator "ChessBase"]
[PlyCount "111"]
[EventDate "2019.10.15"]
[EventType "swiss"]
[EventCountry "RUS"]
[SourceTitle "playchess.com"]
[Source "ChessBase"]
[SourceQuality "1"]
[TimeControl "900+10"]

1. e4 {[%emt 0:00:11]} c5 {[%emt 0:00:02]} 2. Nf3 {[%emt 0:00:02]} e6 {[%emt 0:00:02]} 3. Nc3 {[%emt 0:00:03]} a6 {[%emt 0:00:18]} 4. g3 {[%emt 0:00:03]} b5 {[%emt 0:00:02]} 5. Bg2 {[%emt 0:00:01]} Bb7 {[%emt 0:00:01]} 6. d3 {[%emt 0:00:01]} d6 {[%emt 0:00:16]} 7. O-O {[%emt 0:00:03]} Nf6 {[%emt 0:00:02]} 8. Ng5 {[%emt 0:00:05]} h6 {[%emt 0:00:06]} 9. Nh3 {[%emt 0:00:20]} d5 {[%emt 0:00:25]} 10. e5 {[%emt 0:02:08]} Nfd7 {[%emt 0:00:54]} 11. f4 {[%emt 0:01:50]} g6 {[%emt 0:02:46]} 12. Ne2 {[%emt 0:00:52]} Nc6 {[%emt 0:01:31]} 13. c3 {[%emt 0:00:15]} c4 {[%emt 0:01:06]} 14. d4 {[%emt 0:00:14]} a5 {[%emt 0:00:09]} 15. g4 {[%emt 0:00:12]} h5 {[%emt 0:00:04]} 16. f5 {[%emt 0:00:05]} hxg4 {[%emt 0:01:27]} 17. fxe6 {[%emt 0:00:02]} Ndxe5 {[%emt 0:00:01]} 18. dxe5 {[%emt 0:02:18]} Bc5+ {[%emt 0:00:02]} 19. Nf2 {[%emt 0:04:49]} Nxe5 {[%emt 0:01:13]} 20. exf7+ {[%emt 0:00:02]} Kxf7 {[%emt 0:00:11]} 21. Nd4 {[%emt 0:00:22]} Kg8 {[%emt 0:00:19]} 22. Bf4 {[%emt 0:00:32]} Qf6 {[%emt 0:01:48]} 23. Bxe5 {[%emt 0:00:39]} Qxe5 {[%emt 0:00:02]} 24. Nxg4 {[%emt 0:00:01]} Qg5 {[%emt 0:00:06]} 25. Qe2 {[%emt 0:00:16]} Kg7 {[%emt 0:01:48]} 26. Qe6 {[%emt 0:02:20]} Qe7 {[%emt 0:01:15]} 27. Qxe7+ {[%emt 0:00:18]} Bxe7 {[%emt 0:00:02]} 28. Ne6+ {[%emt 0:00:03]} Kg8 {[%emt 0:00:01]} 29. Nf6+ {[%emt 0:00:13]} Kf7 {[%emt 0:00:03]} 30. Nxd5+ {[%emt 0:00:40]} Kxe6 {[%emt 0:00:02]} 31. Nf4+ {[%emt 0:00:09]} Kd7 {[%emt 0:00:27]} 32. Bxb7 {[%emt 0:00:07]} Raf8 {[%emt 0:00:14]} 33. Rad1+ {[%emt 0:00:29]} Bd6 {[%emt 0:00:02]} 34. Nxg6 {[%emt 0:00:22]} Rxf1+ {[%emt 0:00:13]} 35. Kxf1 {[%emt 0:00:06]} Rxh2 {[%emt 0:00:03]} 36. Bg2 {[%emt 0:00:10]} Kc7 {[%emt 0:00:08]} 37. Rd5 {[%emt 0:00:03]} Rh6 {[%emt 0:00:07]} 38. Ne5 {[%emt 0:00:06]} Rf6+ {[%emt 0:00:08]} 39. Nf3 {[%emt 0:00:01]} Kb6 {[%emt 0:00:01]} 40. Ke2 {[%emt 0:00:07]} Re6+ {[%emt 0:00:08]} 41. Kd1 {[%emt 0:00:02]} Rh6 {[%emt 0:00:22]} 42. Bf1 {[%emt 0:00:06]} a4 {[%emt 0:00:03]} 43. a3 {[%emt 0:00:04]} Bc5 {[%emt 0:00:09]} 44. Ne5 {[%emt 0:00:09]} Be7 {[%emt 0:00:33]} 45. Bg2 {[%emt 0:00:14]} Rh2 {[%emt 0:00:04]} 46. Rd2 {[%emt 0:00:10]} Bg5 {[%emt 0:00:02]} 47. Re2 {[%emt 0:00:04]} Bf4 {[%emt 0:00:02]} 48. Nd7+ {[%emt 0:00:06]} Ka5 {[%emt 0:00:05]} 49. Nc5 {[%emt 0:00:00]} Kb6 {[%emt 0:00:09]} 50. Re6+ {[%emt 0:00:00]} Kc7 {[%emt 0:00:05]} 51. Rc6+ {[%emt 0:00:00]} Kb8 {[%emt 0:00:01]} 52. Rb6+ {[%emt 0:00:00]} Kc7 {[%emt 0:00:03]} 53. Rg6 {[%emt 0:00:31]} Be3 {[%emt 0:00:06]} 54. Ne6+ {[%emt 0:00:35]} Kb6 {[%emt 0:00:02]} 55. Nd4+ {[%emt 0:00:04]} Ka5 {[%emt 0:00:17]} 56. Bb7 {[%emt 0:00:08]} 1-0

[Event "RUS-ch Men Rapid 2019"]
[Site "Sochi"]
[Date "2019.10.16"]
[Round "8.14"]
[White "Yuffa, Daniil"]
[Black "Tekeyev, Zaur"]
[Result "0-1"]
[ECO "E92"]
[WhiteElo "2577"]
[BlackElo "2384"]
[Annotator "RC"]
[PlyCount "70"]
[EventDate "2019.10.15"]
[EventType "swiss"]
[EventCountry "RUS"]
[SourceTitle "playchess.com"]
[Source "ChessBase"]
[SourceQuality "1"]
[TimeControl "900+10"]

1. d4 {[%emt 0:00:00]} Nf6 {[%emt 0:00:00]} 2. c4 {[%emt 0:00:00]} g6 {[%emt 0:00:00]} 3. Nc3 {[%emt 0:00:00]} Bg7 {[%emt 0:00:00]} 4. e4 {[%emt 0:00:00]} d6 {[%emt 0:00:00]} 5. Nf3 {[%emt 0:00:01]} O-O {[%emt 0:00:00]} 6. Be2 {[%emt 0:00:02]} e5 {[%emt 0:00:40]} 7. d5 {[%emt 0:00:01]} a5 {[%emt 0:00:32]} 8. Bg5 {[%emt 0:00:01]} h6 {[%emt 0:00:01]} 9. Be3 {[%emt 0:00:02]} Ng4 {[%emt 0:00:10]} 10. Bd2 {[%emt 0:00:01]} f5 {[%emt 0:00:01]} 11. exf5 {[%emt 0:00:14]} gxf5 {[%emt 0:00:02]} 12. h3 {[%emt 0:00:01]} Nf6 {[%emt 0:00:04]} 13. Qc1 {[%emt 0:00:01]} f4 {[%emt 0:00:19]} 14. g3 {[%emt 0:00:01]} e4 {[%emt 0:00:01]} 15. Nh4 {[%emt 0:00:02]} e3 {[%emt 0:00:01]} 16. fxe3 {[%emt 0:00:01]} fxg3 {[%emt 0:00:01]} 17. Ng6 {[%emt 0:00:03]} Re8 {[%emt 0:00:06]} 18. Nf4 {[%emt 0:00:05]} Ne4 {[%emt 0:07:15]} 19. Nxe4 {[%emt 0:01:55]} Rxe4 {[%emt 0:00:02]} 20. Rg1 {[%emt 0:01:48]} Qh4 {[%emt 0:00:46]} 21. Bc3 {[%emt 0:02:57]} Rxf4 {[%emt 0:04:28]} 22. Bxg7 {[%emt 0:01:32]} g2+ {[%emt 0:00:10]} 23. Kd2 {[%emt 0:00:39]} Rf2 {[%emt 0:00:08]} 24. Qc3 {[%emt 0:02:34]} Bxh3 {[%emt 0:00:35]} 25. Bh8 {[%emt 0:01:10]} Qg5 {[%emt 0:00:43]} 26. Rae1 {[%emt 0:02:39]} Nd7 {[%emt 0:00:02]} 27. Bd4 {[%emt 0:00:36]} Bg4 {[%emt 0:01:20]} 28. Kd1 {[%emt 0:00:23]} Bxe2+ {[%emt 0:00:46]} 29. Rxe2 {[%emt 0:00:00]} Rf1+ {[%emt 0:00:06]} 30. Re1 {[%emt 0:00:01]} Raf8 {[%emt 0:00:47]} 31. Qd3 {[%emt 0:00:44]} Qg4+ {[%emt 0:00:27]} 32. Qe2 {[%emt 0:00:51]} Qxe2+ {[%emt 0:00:11]} 33. Kxe2 {[%emt 0:00:06]} R8f2+ {[%emt 0:00:01]} 34. Kd3 {[%emt 0:00:01]} Rxe1 {[%emt 0:00:07]} 35. Rxe1 {[%emt 0:00:01]} Rf1 {[%emt 0:00:02]} 0-1

[Event "RUS-ch Men Rapid 2019"]
[Site "Sochi"]
[Date "2019.10.16"]
[Round "8.15"]
[White "Bryakin, Mikhail"]
[Black "Gutenev, Alexander"]
[Result "1/2-1/2"]
[ECO "A50"]
[WhiteElo "2440"]
[BlackElo "2469"]
[Annotator "RC"]
[PlyCount "58"]
[EventDate "2019.10.15"]
[EventType "swiss"]
[EventCountry "RUS"]
[SourceTitle "playchess.com"]
[Source "ChessBase"]
[SourceQuality "1"]
[TimeControl "900+10"]

1. d4 Nf6 2. c4 b6 3. Nc3 Bb7 4. d5 e6 5. e4 Bb4 6. Bd3 exd5 7. exd5 Bxc3+ 8. bxc3 O-O 9. Ne2 h6 10. Rg1 Re8 11. Kf1 Ne4 12. Be3 Na6 13. Ng3 Nxg3+ 14. hxg3 Nc5 15. Bxc5 bxc5 16. Rb1 Rb8 17. Rh1 Qf6 18. Qf3 Ba6 19. Rxb8 Rxb8 20. Qxf6 gxf6 21. Rxh6 Rb2 22. Rxf6 d6 23. g4 Rxa2 24. Ke1 Kg7 25. g5 Ra3 26. Kd2 Ra2+ 27. Ke1 Ra1+ 28. Kd2 Ra2+ 29. Ke1 Ra1+ 1/2-1/2

[Event "RUS-ch Men Rapid 2019"]
[Site "Sochi"]
[Date "2019.10.16"]
[Round "8.16"]
[White "Drygalov, Andrey"]
[Black "Savitskiy, Sergey"]
[Result "1-0"]
[ECO "B51"]
[WhiteElo "2484"]
[BlackElo "2407"]
[Annotator "ChessBase"]
[PlyCount "93"]
[EventDate "2019.10.15"]
[EventType "swiss"]
[EventCountry "RUS"]
[SourceTitle "playchess.com"]
[Source "ChessBase"]
[SourceQuality "1"]
[TimeControl "900+10"]

1. e4 {[%emt 0:00:00]} c5 {[%emt 0:00:00]} 2. Nf3 {[%emt 0:00:00]} d6 {[%emt 0:00:00]} 3. Bb5+ {[%emt 0:00:00]} Nc6 {[%emt 0:00:09]} 4. O-O {[%emt 0:00:00]} Bd7 {[%emt 0:00:01]} 5. Re1 {[%emt 0:00:00]} a6 {[%emt 0:00:05]} 6. Bf1 {[%emt 0:00:00]} Bg4 {[%emt 0:00:06]} 7. h3 {[%emt 0:01:03]} Bxf3 {[%emt 0:00:02]} 8. Qxf3 {[%emt 0:00:01]} g6 {[%emt 0:00:02]} 9. c3 {[%emt 0:00:19]} Bg7 {[%emt 0:00:02]} 10. Qd1 {[%emt 0:00:24]} e6 {[%emt 0:01:29]} 11. d3 {[%emt 0:00:26]} Nge7 {[%emt 0:00:02]} 12. Nd2 {[%emt 0:00:01]} d5 {[%emt 0:02:10]} 13. Nf3 {[%emt 0:00:01]} O-O {[%emt 0:00:38]} 14. e5 {[%emt 0:01:29]} d4 {[%emt 0:00:01]} 15. c4 {[%emt 0:00:18]} h6 {[%emt 0:00:29]} 16. h4 {[%emt 0:00:48]} Nf5 {[%emt 0:03:22]} 17. g3 {[%emt 0:00:01]} h5 {[%emt 0:00:01]} 18. Bh3 {[%emt 0:00:37]} Re8 {[%emt 0:00:14]} 19. Bg5 {[%emt 0:00:41]} Qc7 {[%emt 0:00:01]} 20. Bf4 {[%emt 0:00:07]} Qd8 {[%emt 0:02:41]} 21. Qe2 {[%emt 0:00:33]} b5 {[%emt 0:00:26]} 22. b3 {[%emt 0:01:58]} Rb8 {[%emt 0:00:14]} 23. Bg2 {[%emt 0:00:47]} Qc7 {[%emt 0:00:24]} 24. Rac1 {[%emt 0:01:39]} bxc4 {[%emt 0:01:04]} 25. Rxc4 {[%emt 0:00:01]} Nb4 {[%emt 0:00:01]} 26. Rec1 {[%emt 0:01:35]} Qa5 {[%emt 0:00:39]} 27. Rxc5 {[%emt 0:00:15]} Qxa2 {[%emt 0:00:03]} 28. Nd2 {[%emt 0:00:03]} Nd5 {[%emt 0:00:46]} 29. Bxd5 {[%emt 0:00:25]} exd5 {[%emt 0:00:01]} 30. Qd1 {[%emt 0:00:14]} Rb5 {[%emt 0:02:16]} 31. Rc6 {[%emt 0:01:11]} Qa3 {[%emt 0:00:32]} 32. Ra1 {[%emt 0:00:38]} Qe7 {[%emt 0:00:02]} 33. Nf3 {[%emt 0:01:36]} Qb7 {[%emt 0:00:35]} 34. Rcxa6 {[%emt 0:00:30]} Rxb3 {[%emt 0:00:02]} 35. R6a5 {[%emt 0:00:22]} Rc3 {[%emt 0:01:25]} 36. Kg2 {[%emt 0:00:19]} Qb3 {[%emt 0:00:24]} 37. Qxb3 {[%emt 0:00:01]} Rxb3 {[%emt 0:00:01]} 38. Rxd5 {[%emt 0:00:01]} Rxd3 {[%emt 0:00:03]} 39. Ra7 {[%emt 0:00:01]} Rd1 {[%emt 0:00:42]} 40. Rdd7 {[%emt 0:00:08]} Rf8 {[%emt 0:00:07]} 41. Ng5 {[%emt 0:00:08]} Bh6 {[%emt 0:00:10]} 42. Nxf7 {[%emt 0:01:08]} Nxh4+ {[%emt 0:00:10]} 43. gxh4 {[%emt 0:00:07]} Bxf4 {[%emt 0:00:00]} 44. e6 {[%emt 0:00:01]} Re1 {[%emt 0:00:23]} 45. Ng5 {[%emt 0:00:08]} Be5 {[%emt 0:00:13]} 46. e7 {[%emt 0:00:01]} Re8 {[%emt 0:00:10]} 47. Rd8 {[%emt 0:00:01]} 1-0

[Event "RUS-ch Men Rapid 2019"]
[Site "Sochi"]
[Date "2019.10.16"]
[Round "8.18"]
[White "Lugovskoy, Maxim"]
[Black "Ivlev, Aleksey"]
[Result "1-0"]
[ECO "B12"]
[WhiteElo "2436"]
[BlackElo "2292"]
[Annotator "NA"]
[PlyCount "91"]
[EventDate "2019.10.15"]
[EventType "swiss"]
[EventCountry "RUS"]
[SourceTitle "playchess.com"]
[Source "ChessBase"]
[SourceQuality "1"]
[TimeControl "900+10"]

1. e4 {[%emt 0:00:17]} c6 {[%emt 0:00:00]} 2. d4 {[%emt 0:00:04]} d5 {[%emt 0:00:00]} 3. f3 {[%emt 0:00:05]} e6 {[%emt 0:00:00]} 4. Nc3 {[%emt 0:00:02]} Bb4 {[%emt 0:00:02]} 5. Bd2 {[%emt 0:00:44]} dxe4 {[%emt 0:00:38]} 6. Nxe4 {[%emt 0:00:03]} Bxd2+ {[%emt 0:00:11]} 7. Qxd2 {[%emt 0:00:03]} Nf6 {[%emt 0:00:01]} 8. O-O-O {[%emt 0:00:08]} O-O {[%emt 0:00:03]} 9. Nh3 {[%emt 0:00:45]} Nbd7 {[%emt 0:00:39]} 10. Nhf2 {[%emt 0:00:59]} Qe7 {[%emt 0:00:27]} 11. Bd3 {[%emt 0:00:07]} c5 {[%emt 0:00:17]} 12. Nxf6+ {[%emt 0:02:03]} Nxf6 {[%emt 0:00:06]} 13. dxc5 {[%emt 0:00:05]} Qxc5 {[%emt 0:00:06]} 14. Ne4 {[%emt 0:00:01]} Nxe4 {[%emt 0:01:13]} 15. Bxe4 {[%emt 0:00:01]} e5 {[%emt 0:00:45]} 16. Rhe1 {[%emt 0:00:44]} Be6 {[%emt 0:00:42]} 17. Qd6 {[%emt 0:00:05]} Qa5 {[%emt 0:00:32]} 18. a3 {[%emt 0:00:26]} Rad8 {[%emt 0:00:27]} 19. Qe7 {[%emt 0:00:06]} Rfe8 {[%emt 0:02:38]} 20. Qh4 {[%emt 0:02:30]} h6 {[%emt 0:00:49]} 21. g4 {[%emt 0:00:11]} Qc7 {[%emt 0:02:01]} 22. Qf2 {[%emt 0:00:23]} b5 {[%emt 0:00:16]} 23. Qe3 {[%emt 0:00:23]} a5 {[%emt 0:01:32]} 24. Bd3 {[%emt 0:00:26]} Bc4 {[%emt 0:00:01]} 25. Bxc4 {[%emt 0:00:58]} Rxd1+ {[%emt 0:00:15]} 26. Rxd1 {[%emt 0:00:04]} Qxc4 {[%emt 0:00:01]} 27. Kb1 {[%emt 0:00:22]} b4 {[%emt 0:00:36]} 28. Qe4 {[%emt 0:00:17]} Qc5 {[%emt 0:01:00]} 29. a4 {[%emt 0:00:01]} Qf2 {[%emt 0:00:25]} 30. h3 {[%emt 0:00:25]} Qg3 {[%emt 0:00:37]} 31. Rd5 {[%emt 0:00:37]} Qxh3 {[%emt 0:01:58]} 32. Rxa5 {[%emt 0:00:01]} Qf1+ {[%emt 0:00:09]} 33. Ka2 {[%emt 0:00:01]} g6 {[%emt 0:00:26]} 34. Qd5 {[%emt 0:01:18]} Qe2 {[%emt 0:00:27]} 35. Ra7 {[%emt 0:00:11]} Rf8 {[%emt 0:00:01]} 36. Rc7 {[%emt 0:00:07]} Qa6 {[%emt 0:00:21]} 37. a5 {[%emt 0:00:01]} Qf6 {[%emt 0:00:34]} 38. Rc6 {[%emt 0:00:08]} Qe7 {[%emt 0:00:07]} 39. Rxg6+ {[%emt 0:00:02]} Kh7 {[%emt 0:00:01]} 40. Rd6 {[%emt 0:00:13]} Kg7 {[%emt 0:00:06]} 41. a6 {[%emt 0:00:01]} Rc8 {[%emt 0:00:13]} 42. Kb1 {[%emt 0:00:24]} b3 {[%emt 0:00:06]} 43. cxb3 {[%emt 0:00:09]} Rc7 {[%emt 0:00:23]} 44. Ka2 {[%emt 0:00:12]} Rc1 {[%emt 0:00:01]} 45. b4 {[%emt 0:00:22]} Qg5 {[%emt 0:00:08]} 46. a7 {[%emt 0:00:09]} 1-0

[Event "RUS-ch Men Rapid 2019"]
[Site "Sochi"]
[Date "2019.10.16"]
[Round "8.19"]
[White "Sadovsky, Artem"]
[Black "Khegay, Dmitriy"]
[Result "0-1"]
[ECO "A06"]
[WhiteElo "2411"]
[BlackElo "2509"]
[Annotator "ChessBase"]
[PlyCount "119"]
[EventDate "2019.10.15"]
[EventType "swiss"]
[EventCountry "RUS"]
[SourceTitle "playchess.com"]
[Source "ChessBase"]
[SourceQuality "1"]
[TimeControl "900+10"]

1. Nf3 {[%emt 0:00:00]} d5 {[%emt 0:00:00]} 2. g3 {[%emt 0:00:00]} Nc6 {[%emt 0:00:00]} 3. d4 {[%emt 0:00:04]} Bg4 {[%emt 0:00:00]} 4. Bg2 {[%emt 0:00:01]} e6 {[%emt 0:00:00]} 5. c3 {[%emt 0:00:29]} Bd6 {[%emt 0:00:00]} 6. a4 {[%emt 0:00:33]} Nf6 {[%emt 0:00:03]} 7. Na3 {[%emt 0:00:17]} a6 {[%emt 0:00:06]} 8. Nc2 {[%emt 0:00:18]} O-O {[%emt 0:00:18]} 9. O-O {[%emt 0:00:27]} Ne4 {[%emt 0:01:01]} 10. Nd2 {[%emt 0:00:13]} Nf6 {[%emt 0:00:25]} 11. Qe1 {[%emt 0:00:23]} e5 {[%emt 0:00:11]} 12. e4 {[%emt 0:02:12]} exd4 {[%emt 0:02:20]} 13. cxd4 {[%emt 0:00:01]} dxe4 {[%emt 0:00:15]} 14. Nxe4 {[%emt 0:00:03]} Nxe4 {[%emt 0:00:11]} 15. Qxe4 {[%emt 0:00:04]} Bh5 {[%emt 0:00:18]} 16. Qd5 {[%emt 0:02:03]} Bg6 {[%emt 0:00:12]} 17. Bg5 {[%emt 0:00:02]} Qd7 {[%emt 0:00:26]} 18. Ne3 {[%emt 0:00:26]} h6 {[%emt 0:00:43]} 19. Bf4 {[%emt 0:00:43]} Rad8 {[%emt 0:00:10]} 20. Bxd6 {[%emt 0:00:25]} Qxd6 {[%emt 0:00:02]} 21. Qxd6 {[%emt 0:00:08]} Rxd6 {[%emt 0:00:20]} 22. Rfc1 {[%emt 0:01:41]} Rxd4 {[%emt 0:00:19]} 23. Bxc6 {[%emt 0:00:38]} bxc6 {[%emt 0:00:01]} 24. Rxc6 {[%emt 0:00:02]} Rb8 {[%emt 0:00:08]} 25. Rxa6 {[%emt 0:01:37]} Rxb2 {[%emt 0:00:02]} 26. Rc6 {[%emt 0:01:30]} Rdd2 {[%emt 0:01:13]} 27. a5 {[%emt 0:03:04]} Rxf2 {[%emt 0:01:00]} 28. Rc4 {[%emt 0:00:11]} Rfe2 {[%emt 0:00:49]} 29. a6 {[%emt 0:00:55]} Ra2 {[%emt 0:00:01]} 30. Rxa2 {[%emt 0:00:50]} Rxa2 {[%emt 0:00:02]} 31. Nd5 {[%emt 0:00:00]} Bd3 {[%emt 0:00:06]} 32. Rxc7 {[%emt 0:00:25]} Rxa6 {[%emt 0:00:08]} 33. Rc8+ {[%emt 0:00:31]} Kh7 {[%emt 0:00:01]} 34. Rc7 {[%emt 0:00:05]} Be4 {[%emt 0:00:39]} 35. Nf4 {[%emt 0:00:07]} Rf6 {[%emt 0:03:09]} 36. Re7 {[%emt 0:00:02]} Bc6 {[%emt 0:00:12]} 37. Rc7 {[%emt 0:00:02]} g6 {[%emt 0:00:24]} 38. h4 {[%emt 0:00:13]} Kg7 {[%emt 0:00:07]} 39. Re7 {[%emt 0:00:29]} Rd6 {[%emt 0:00:05]} 40. Kf2 {[%emt 0:00:08]} Kf6 {[%emt 0:00:03]} 41. Rc7 {[%emt 0:00:04]} Bd7 {[%emt 0:00:10]} 42. Kf3 {[%emt 0:00:06]} Bc6+ {[%emt 0:00:42]} 43. Ke3 {[%emt 0:00:03]} g5 {[%emt 0:00:19]} 44. hxg5+ {[%emt 0:00:08]} hxg5 {[%emt 0:00:01]} 45. Ne2 {[%emt 0:00:18]} Bd5 {[%emt 0:00:23]} 46. Nd4 {[%emt 0:00:04]} Ra6 {[%emt 0:00:02]} 47. Nb5 {[%emt 0:00:14]} Be6 {[%emt 0:00:15]} 48. Ra7 {[%emt 0:00:14]} Rxa7 {[%emt 0:00:14]} 49. Nxa7 {[%emt 0:00:02]} Bd7 {[%emt 0:00:01]} 50. Kd4 {[%emt 0:00:26]} Kf5 {[%emt 0:00:06]} 51. Kd5 {[%emt 0:00:01]} Kg4 {[%emt 0:00:05]} 52. Kd6 {[%emt 0:00:01]} Be6 {[%emt 0:00:16]} 53. Nc6 {[%emt 0:00:10]} Kxg3 {[%emt 0:00:02]} 54. Ke5 {[%emt 0:00:04]} Kh3 {[%emt 0:00:16]} 55. Nd4 {[%emt 0:00:03]} g4 {[%emt 0:00:10]} 56. Kf4 {[%emt 0:00:03]} g3 {[%emt 0:00:04]} 57. Ne2 {[%emt 0:00:09]} g2 {[%emt 0:00:02]} 58. Ke3 {[%emt 0:00:20]} Bg4 {[%emt 0:00:12]} 59. Ng1+ {[%emt 0:00:09]} Kh2 {[%emt 0:00:02]} 60. Kd4 0-1

[Event "RUS-ch Men Rapid 2019"]
[Site "Sochi"]
[Date "2019.10.16"]
[Round "8.27"]
[White "Gurvich, Vitaly"]
[Black "Belyakov, Bogdan"]
[Result "1/2-1/2"]
[ECO "E73"]
[WhiteElo "2278"]
[BlackElo "2495"]
[Annotator "ChessBase"]
[PlyCount "113"]
[EventDate "2019.10.15"]
[EventType "swiss"]
[EventCountry "RUS"]
[SourceTitle "playchess.com"]
[Source "ChessBase"]
[SourceQuality "1"]
[TimeControl "900+10"]

1. c4 Nf6 2. Nc3 g6 3. e4 d6 4. d4 Bg7 5. Be2 O-O 6. Bg5 h6 7. Be3 c5 8. d5 e6 9. Qd2 exd5 10. exd5 Qb6 11. Nf3 Ng4 12. Bf4 g5 13. h3 Nxf2 14. Kxf2 gxf4 15. Rab1 Bf5 16. Bd3 Bxd3 17. Qxd3 Nd7 18. Qf5 Ne5 19. Nxe5 Bxe5 20. Ne4 Qd8 21. h4 Qe7 22. Rbe1 Rae8 23. b3 b6 24. g4 fxg3+ 25. Kg2 f6 26. Rhf1 Qh7 27. h5 Qxf5 28. Rxf5 Kg7 29. Kf3 Rg8 30. Re2 Kh8 31. Rg2 Ref8 32. Ke2 Rf7 33. Kf3 Rfg7 34. Ke3 Rg4 35. Nxf6 R4g5 36. Nxg8 Rxf5 37. Nxh6 Rxh5 38. Nf7+ Kg7 39. Nxe5 Rxe5+ 40. Kf4 Kf7 41. Rxg3 Re2 42. a4 Kf6 43. Rh3 Rf2+ 44. Ke4 Rb2 45. Rh6+ Ke7 46. Rh7+ Kd8 47. Kf5 Re2 48. Rxa7 Kc8 49. Kf6 Re3 50. Re7 Rh3 51. Rg7 Re3 52. Rh7 Re2 53. Re7 Rh2 54. Re6 Kd7 55. Re7+ Kc8 56. Rg7 Re2 57. Re7 1/2-1/2

[Event "RUS-ch Men Rapid 2019"]
[Site "Sochi"]
[Date "2019.10.16"]
[Round "8.29"]
[White "Gaydym, Arseniy"]
[Black "Airapetian, Gor"]
[Result "1-0"]
[ECO "B12"]
[WhiteElo "2139"]
[BlackElo "2436"]
[Annotator "NA"]
[PlyCount "43"]
[EventDate "2019.10.15"]
[EventType "swiss"]
[EventCountry "RUS"]
[SourceTitle "playchess.com"]
[Source "ChessBase"]
[SourceQuality "1"]
[TimeControl "900+10"]

1. e4 {[%emt 0:00:00]} c6 {[%emt 0:00:00]} 2. d4 {[%emt 0:00:00]} d5 {[%emt 0:00:00]} 3. e5 {[%emt 0:00:02]} Bf5 {[%emt 0:00:00]} 4. h4 {[%emt 0:00:03]} h5 {[%emt 0:00:00]} 5. Bd3 {[%emt 0:00:06]} Bxd3 {[%emt 0:00:37]} 6. Qxd3 {[%emt 0:00:03]} e6 {[%emt 0:00:06]} 7. Bg5 {[%emt 0:01:08]} Qb6 {[%emt 0:00:37]} 8. Nd2 {[%emt 0:01:26]} Ne7 {[%emt 0:00:02]} 9. Ngf3 {[%emt 0:00:56]} Nd7 {[%emt 0:01:51]} 10. O-O {[%emt 0:00:23]} Nf5 {[%emt 0:02:16]} 11. Rfe1 {[%emt 0:02:34]} Qb5 {[%emt 0:01:44]} 12. c4 {[%emt 0:02:21]} dxc4 {[%emt 0:02:15]} 13. Nxc4 {[%emt 0:00:29]} Nb6 {[%emt 0:00:02]} 14. b3 {[%emt 0:00:30]} Bb4 {[%emt 0:01:18]} 15. Red1 {[%emt 0:01:04]} Nd5 {[%emt 0:01:20]} 16. a3 {[%emt 0:00:48]} Bf8 {[%emt 0:02:59]} 17. Qc2 {[%emt 0:02:10]} Be7 {[%emt 0:02:10]} 18. a4 {[%emt 0:00:52]} Qa6 {[%emt 0:00:01]} 19. Bxe7 {[%emt 0:01:02]} Ndxe7 {[%emt 0:00:03]} 20. Ng5 {[%emt 0:00:30]} Rd8 {[%emt 0:00:39]} 21. Ne4 {[%emt 0:01:25]} Kf8 {[%emt 0:00:16]} 22. Nc5 {[%emt 0:00:16]} 1-0

[Event "RUS-ch Men Rapid 2019"]
[Site "Sochi"]
[Date "2019.10.16"]
[Round "8.30"]
[White "Korchmar, Vasiliy"]
[Black "Klimentov, Evgeny"]
[Result "1-0"]
[ECO "A40"]
[WhiteElo "2434"]
[BlackElo "2180"]
[Annotator "NA"]
[PlyCount "49"]
[EventDate "2019.10.15"]
[EventType "swiss"]
[EventCountry "RUS"]
[SourceTitle "playchess.com"]
[Source "ChessBase"]
[SourceQuality "1"]
[TimeControl "900+10"]

1. d4 {[%emt 0:00:00]} Nf6 {[%emt 0:00:00]} 2. c4 {[%emt 0:00:00]} e6 {[%emt 0:00:00]} 3. g3 {[%emt 0:00:00]} c5 {[%emt 0:00:07]} 4. d5 {[%emt 0:00:00]} exd5 {[%emt 0:00:02]} 5. cxd5 {[%emt 0:00:00]} b5 {[%emt 0:00:02]} 6. Nf3 {[%emt 0:00:32]} d6 {[%emt 0:00:39]} 7. e4 {[%emt 0:00:08]} Nxe4 {[%emt 0:00:46]} 8. Bxb5+ {[%emt 0:00:03]} Bd7 {[%emt 0:00:02]} 9. Bxd7+ {[%emt 0:00:59]} Nxd7 {[%emt 0:00:02]} 10. Qe2 {[%emt 0:00:19]} Ndf6 {[%emt 0:00:19]} 11. Nh4 {[%emt 0:05:05]} Kd7 {[%emt 0:04:08]} 12. Qb5+ {[%emt 0:02:31]} Kc8 {[%emt 0:00:02]} 13. f3 {[%emt 0:00:02]} Qe7 {[%emt 0:02:53]} 14. O-O {[%emt 0:00:02]} Qe5 {[%emt 0:00:07]} 15. Qc6+ {[%emt 0:01:39]} Kb8 {[%emt 0:00:02]} 16. fxe4 {[%emt 0:00:01]} Qd4+ {[%emt 0:00:01]} 17. Kg2 {[%emt 0:01:53]} Qxe4+ {[%emt 0:00:02]} 18. Nf3 {[%emt 0:00:01]} Qxd5 {[%emt 0:00:20]} 19. Qxd5 {[%emt 0:00:18]} Nxd5 {[%emt 0:00:01]} 20. Rd1 {[%emt 0:00:27]} Nb4 {[%emt 0:00:09]} 21. a3 {[%emt 0:00:31]} Nc6 {[%emt 0:00:01]} 22. Bf4 {[%emt 0:00:08]} Kc7 {[%emt 0:00:01]} 23. Nc3 {[%emt 0:00:01]} a6 {[%emt 0:00:01]} 24. Ne4 {[%emt 0:00:06]} Be7 {[%emt 0:00:52]} 25. Nxd6 {[%emt 0:00:39]} 1-0